[Event "Titled Tuesday Blitz December 27 Early 2022"]
[White "Abdilkhair, Abilmansur"]
[Black "Costachi, Mihnea"]
[WhiteFideId "13716417"]
[BlackFideId "1217518"]
[WhiteElo "2268"]
[BlackElo "2476"]
[Result "0-1"]
[Round "08"]
[TimeControl "180+2"]
[Date "2022.12.27"]
[WhiteClock "0:00:15"]
[BlackClock "0:00:32"]

1. e4 {[%clk 0:03:00]}  c5 {[%clk 0:02:59]} 2. Nc3 {[%clk 0:03:01]}  e6 {[%clk 0:02:58]} 3. g3 {[%clk 0:03:00]}  d5 {[%clk 0:02:58]} 4. Bg2 {[%clk 0:03:00]}  d4 {[%clk 0:02:58]} 5. Nce2 {[%clk 0:03:00]}  Nc6 {[%clk 0:02:58]} 6. d3 {[%clk 0:03:00]}  e5 {[%clk 0:02:59]} 7. f4 {[%clk 0:03:01]}  Bd6 {[%clk 0:02:57]} 8. Nf3 {[%clk 0:03:01]}  f6 {[%clk 0:02:58]} 9. O-O {[%clk 0:03:01]}  Nge7 {[%clk 0:02:57]} 10. Kh1 {[%clk 0:02:10]}  Be6 {[%clk 0:02:54]} 11. c3 {[%clk 0:02:00]}  b5 {[%clk 0:02:50]} 12. a4 {[%clk 0:01:59]}  a6 {[%clk 0:02:49]} 13. fxe5 {[%clk 0:01:58]}  Bxe5 {[%clk 0:02:41]} 14. Nxe5 {[%clk 0:01:56]}  fxe5 {[%clk 0:02:34]} 15. axb5 {[%clk 0:01:50]}  axb5 {[%clk 0:02:34]} 16. Rxa8 {[%clk 0:01:50]}  Qxa8 {[%clk 0:02:35]} 17. b4 {[%clk 0:01:49]}  dxc3 {[%clk 0:02:26]} 18. Nxc3 {[%clk 0:01:43]}  cxb4 {[%clk 0:02:21]} 19. Nxb5 {[%clk 0:01:42]}  Qb8 {[%clk 0:02:22]} 20. Qa4 {[%clk 0:01:24]}  Bd7 {[%clk 0:02:22]} 21. Qa6 {[%clk 0:01:21]}  Bc8 {[%clk 0:02:15]} 22. Qa4 {[%clk 0:01:20]}  Bd7 {[%clk 0:02:15]} 23. Qa6 {[%clk 0:01:17]}  Rf8 {[%clk 0:02:08]} 24. Rxf8+ {[%clk 0:01:07]}  Kxf8 {[%clk 0:02:08]} 25. Be3 {[%clk 0:00:49]}  b3 {[%clk 0:01:57]} 26. Bc1 {[%clk 0:00:45]}  Nb4 {[%clk 0:01:56]} 27. Qa4 {[%clk 0:00:43]}  Qxb5 {[%clk 0:01:57]} 28. Qxb3 {[%clk 0:00:43]}  Nxd3 {[%clk 0:01:54]} 29. Qxb5 {[%clk 0:00:42]}  Bxb5 {[%clk 0:01:55]} 30. Ba3 {[%clk 0:00:41]}  Kf7 {[%clk 0:01:51]} 31. Kg1 {[%clk 0:00:41]}  Ne1 {[%clk 0:01:44]} 32. Bh1 {[%clk 0:00:40]}  Nc2 {[%clk 0:01:43]} 33. Bb2 {[%clk 0:00:39]}  Nc6 {[%clk 0:01:40]} 34. Kf2 {[%clk 0:00:39]}  N6b4 {[%clk 0:01:35]} 35. Bc3 {[%clk 0:00:38]}  Nd3+ {[%clk 0:01:34]} 36. Ke2 {[%clk 0:00:36]}  Nd4+ {[%clk 0:01:33]} 37. Ke3 {[%clk 0:00:35]}  Nc6 {[%clk 0:01:19]} 38. Bg2 {[%clk 0:00:35]}  Nc5 {[%clk 0:01:18]} 39. Bh3 {[%clk 0:00:34]}  Ne6 {[%clk 0:01:17]} 40. Bg4 {[%clk 0:00:30]}  Ncd4 {[%clk 0:01:16]} 41. Bd1 {[%clk 0:00:27]}  Kf6 {[%clk 0:01:17]} 42. Ba5 {[%clk 0:00:27]}  g5 {[%clk 0:01:14]} 43. Be1 {[%clk 0:00:26]}  Nc5 {[%clk 0:01:11]} 44. h4 {[%clk 0:00:26]}  Bc6 {[%clk 0:01:08]} 45. Ba5 {[%clk 0:00:23]}  gxh4 {[%clk 0:01:03]} 46. gxh4 {[%clk 0:00:22]}  Nxe4 {[%clk 0:01:04]} 47. Bb6 {[%clk 0:00:20]}  Nf5+ {[%clk 0:01:04]} 48. Kd3 {[%clk 0:00:19]}  Ned6 {[%clk 0:00:51]} 49. h5 {[%clk 0:00:18]}  e4+ {[%clk 0:00:50]} 50. Kc3 {[%clk 0:00:18]}  Ke5 {[%clk 0:00:47]} 51. Bc7 {[%clk 0:00:18]}  Kf4 {[%clk 0:00:48]} 52. Kb4 {[%clk 0:00:17]}  Be8 {[%clk 0:00:40]} 53. Kc5 {[%clk 0:00:17]}  Kg5 {[%clk 0:00:33]} 54. Bxd6 {[%clk 0:00:17]}  Nxd6 {[%clk 0:00:34]} 55. Kxd6 {[%clk 0:00:18]}  Bxh5 {[%clk 0:00:35]} 56. Bc2 {[%clk 0:00:16]}  e3 {[%clk 0:00:32]} 57. Bd3 {[%clk 0:00:15]}  e2 {[%clk 0:00:32]} 0-1


[Site "https://www.chess.com"]

[Event "Titled Tuesday Blitz December 27 Early 2022"]
[White "Aghasiyev, Kamal"]
[Black "Forgacs, Attila Jr."]
[WhiteFideId "13402854"]
[BlackFideId "773654"]
[WhiteElo "2441"]
[BlackElo "2264"]
[Result "1/2-1/2"]
[Round "08"]
[TimeControl "180+2"]
[Date "2022.12.27"]
[WhiteClock "0:00:46"]
[BlackClock "0:00:04"]

1. e4 {[%clk 0:03:00]}  e5 {[%clk 0:02:59]} 2. Nf3 {[%clk 0:02:59]}  Nc6 {[%clk 0:03:00]} 3. Bb5 {[%clk 0:02:57]}  a6 {[%clk 0:03:00]} 4. Ba4 {[%clk 0:02:57]}  Nf6 {[%clk 0:03:00]} 5. O-O {[%clk 0:02:55]}  Be7 {[%clk 0:03:00]} 6. Re1 {[%clk 0:02:44]}  b5 {[%clk 0:03:00]} 7. Bb3 {[%clk 0:02:44]}  O-O {[%clk 0:03:01]} 8. a4 {[%clk 0:02:42]}  b4 {[%clk 0:03:01]} 9. d4 {[%clk 0:02:37]}  d6 {[%clk 0:03:00]} 10. h3 {[%clk 0:02:34]}  Nxd4 {[%clk 0:02:21]} 11. Nxd4 {[%clk 0:02:32]}  exd4 {[%clk 0:02:22]} 12. Qxd4 {[%clk 0:02:27]}  c5 {[%clk 0:02:22]} 13. Qd3 {[%clk 0:02:27]}  Bb7 {[%clk 0:02:17]} 14. c4 {[%clk 0:02:19]}  Re8 {[%clk 0:02:06]} 15. Bc2 {[%clk 0:02:18]}  Nd7 {[%clk 0:01:43]} 16. b3 {[%clk 0:02:14]}  Ne5 {[%clk 0:01:37]} 17. Qd1 {[%clk 0:02:13]}  Bf6 {[%clk 0:01:36]} 18. Ra2 {[%clk 0:02:13]}  Nc6 {[%clk 0:01:26]} 19. Nd2 {[%clk 0:02:06]}  Bc3 {[%clk 0:01:20]} 20. Re3 {[%clk 0:01:55]}  Nd4 {[%clk 0:01:16]} 21. Bb1 {[%clk 0:01:54]}  Qf6 {[%clk 0:01:00]} 22. Nf3 {[%clk 0:01:52]}  Nxf3+ {[%clk 0:00:55]} 23. Rxf3 {[%clk 0:01:49]}  Qd4 {[%clk 0:00:45]} 24. Rd3 {[%clk 0:01:43]}  Qxe4 {[%clk 0:00:36]} 25. f3 {[%clk 0:01:39]}  Qe1+ {[%clk 0:00:33]} 26. Kh2 {[%clk 0:01:39]}  Be5+ {[%clk 0:00:17]} 27. f4 {[%clk 0:01:37]}  Qxd1 {[%clk 0:00:12]} 28. Rxd1 {[%clk 0:01:37]}  Bd4 {[%clk 0:00:13]} 29. Bb2 {[%clk 0:01:36]}  Bxb2 {[%clk 0:00:09]} 30. Rxb2 {[%clk 0:01:36]}  Rad8 {[%clk 0:00:09]} 31. Rbd2 {[%clk 0:01:35]}  Re6 {[%clk 0:00:09]} 32. f5 {[%clk 0:01:33]}  Rf6 {[%clk 0:00:09]} 33. g4 {[%clk 0:01:32]}  h6 {[%clk 0:00:08]} 34. h4 {[%clk 0:01:30]}  g5 {[%clk 0:00:09]} 35. Re1 {[%clk 0:01:22]}  Kf8 {[%clk 0:00:08]} 36. Kg3 {[%clk 0:01:18]}  d5 {[%clk 0:00:07]} 37. cxd5 {[%clk 0:01:02]}  Rxd5 {[%clk 0:00:08]} 38. Rxd5 {[%clk 0:00:58]}  Bxd5 {[%clk 0:00:09]} 39. Bc2 {[%clk 0:00:58]}  c4 {[%clk 0:00:09]} 40. bxc4 {[%clk 0:00:58]}  Bxc4 {[%clk 0:00:10]} 41. a5 {[%clk 0:00:59]}  b3 {[%clk 0:00:10]} 42. Be4 {[%clk 0:00:59]}  Rd6 {[%clk 0:00:09]} 43. Rc1 {[%clk 0:00:58]}  Bd3 {[%clk 0:00:05]} 44. Rc8+ {[%clk 0:00:52]}  Kg7 {[%clk 0:00:04]} 45. Bxd3 {[%clk 0:00:49]}  Rxd3+ {[%clk 0:00:05]} 46. Kh2 {[%clk 0:00:49]}  gxh4 {[%clk 0:00:05]} 47. Rb8 {[%clk 0:00:49]}  Kf6 {[%clk 0:00:03]} 48. Rb6+ {[%clk 0:00:49]}  Kg5 {[%clk 0:00:03]} 49. Rxa6 {[%clk 0:00:49]}  Kxg4 {[%clk 0:00:03]} 50. Rb6 {[%clk 0:00:48]}  Rd2+ {[%clk 0:00:03]} 51. Kg1 {[%clk 0:00:49]}  Kg3 {[%clk 0:00:03]} 52. Rxb3+ {[%clk 0:00:48]}  Kg4 {[%clk 0:00:02]} 53. Ra3 {[%clk 0:00:47]}  Rd7 {[%clk 0:00:02]} 54. a6 {[%clk 0:00:47]}  Ra7 {[%clk 0:00:02]} 55. Ra5 {[%clk 0:00:47]}  Kg5 {[%clk 0:00:02]} 56. Kg2 {[%clk 0:00:46]}  f6 {[%clk 0:00:03]} 57. Kh3 {[%clk 0:00:47]}  h5 {[%clk 0:00:03]} 58. Kh2 {[%clk 0:00:45]}  Kg4 {[%clk 0:00:03]} 59. Kg2 {[%clk 0:00:46]}  Kf4 {[%clk 0:00:03]} 60. Kh3 {[%clk 0:00:46]}  Kg5 {[%clk 0:00:03]} 61. Kh2 {[%clk 0:00:46]}  Kg4 {[%clk 0:00:04]} 62. Kg2 {[%clk 0:00:46]}  Kf4 {[%clk 0:00:03]} 63. Kh3 {[%clk 0:00:46]}  Kg5 {[%clk 0:00:04]} 1/2-1/2


[Site "https://www.chess.com"]

[Event "Titled Tuesday Blitz December 27 Early 2022"]
[White "Ambartsumova, Karina"]
[Black "Shubenkova, Veronika"]
[WhiteFideId "4166299"]
[BlackFideId "44124040"]
[WhiteElo "2393"]
[BlackElo "1960"]
[Result "1-0"]
[Round "08"]
[TimeControl "180+2"]
[Date "2022.12.27"]
[WhiteClock "0:00:11"]
[BlackClock "0:00:02"]

1. Nf3 {[%clk 0:02:59]}  d5 {[%clk 0:02:59]} 2. g3 {[%clk 0:02:58]}  Nf6 {[%clk 0:03:00]} 3. Bg2 {[%clk 0:02:58]}  g6 {[%clk 0:03:00]} 4. c4 {[%clk 0:02:58]}  c6 {[%clk 0:03:00]} 5. d4 {[%clk 0:02:58]}  Bg7 {[%clk 0:03:00]} 6. O-O {[%clk 0:02:57]}  O-O {[%clk 0:03:00]} 7. b3 {[%clk 0:02:57]}  Nbd7 {[%clk 0:03:00]} 8. Bb2 {[%clk 0:02:57]}  Re8 {[%clk 0:03:00]} 9. Nc3 {[%clk 0:02:52]}  e6 {[%clk 0:02:56]} 10. Rc1 {[%clk 0:02:52]}  b6 {[%clk 0:02:53]} 11. Ne5 {[%clk 0:02:44]}  Nxe5 {[%clk 0:02:53]} 12. dxe5 {[%clk 0:02:44]}  Nd7 {[%clk 0:02:53]} 13. f4 {[%clk 0:02:43]}  Bb7 {[%clk 0:02:51]} 14. e4 {[%clk 0:02:43]}  dxc4 {[%clk 0:02:48]} 15. bxc4 {[%clk 0:02:40]}  Nc5 {[%clk 0:02:48]} 16. Qe2 {[%clk 0:02:35]}  Qc7 {[%clk 0:02:47]} 17. h4 {[%clk 0:02:28]}  Rad8 {[%clk 0:02:47]} 18. h5 {[%clk 0:02:24]}  Nd3 {[%clk 0:02:45]} 19. Rcd1 {[%clk 0:02:24]}  Nxb2 {[%clk 0:02:43]} 20. Qxb2 {[%clk 0:02:25]}  Ba6 {[%clk 0:02:41]} 21. Qe2 {[%clk 0:02:07]}  Qe7 {[%clk 0:02:38]} 22. Rc1 {[%clk 0:01:29]}  Qc5+ {[%clk 0:02:32]} 23. Qf2 {[%clk 0:01:30]}  Bxc4 {[%clk 0:02:26]} 24. Qxc5 {[%clk 0:01:27]}  bxc5 {[%clk 0:02:25]} 25. Rf2 {[%clk 0:01:27]}  Bd3 {[%clk 0:02:17]} 26. Na4 {[%clk 0:01:22]}  c4 {[%clk 0:02:17]} 27. Bf1 {[%clk 0:01:22]}  Bxe4 {[%clk 0:02:14]} 28. Bxc4 {[%clk 0:01:21]}  Bf8 {[%clk 0:02:12]} 29. Bf1 {[%clk 0:01:12]}  Rd4 {[%clk 0:02:11]} 30. Nc5 {[%clk 0:01:03]}  Bxc5 {[%clk 0:02:10]} 31. Rxc5 {[%clk 0:01:04]}  Rd1 {[%clk 0:02:09]} 32. Kh2 {[%clk 0:01:00]}  Rb8 {[%clk 0:02:07]} 33. Bg2 {[%clk 0:01:00]}  Bd5 {[%clk 0:02:05]} 34. h6 {[%clk 0:00:53]}  Rbb1 {[%clk 0:01:46]} 35. Bxd5 {[%clk 0:00:51]}  exd5 {[%clk 0:01:46]} 36. Rxc6 {[%clk 0:00:48]}  Rh1+ {[%clk 0:01:46]} 37. Kg2 {[%clk 0:00:48]}  Rbg1+ {[%clk 0:01:45]} 38. Kf3 {[%clk 0:00:48]}  Rxh6 {[%clk 0:01:46]} 39. Rd2 {[%clk 0:00:41]}  Rh3 {[%clk 0:01:45]} 40. Rg2 {[%clk 0:00:29]}  Rf1+ {[%clk 0:01:44]} 41. Kg4 {[%clk 0:00:27]}  Rhh1 {[%clk 0:01:44]} 42. Rc7 {[%clk 0:00:21]}  d4 {[%clk 0:01:37]} 43. Rxa7 {[%clk 0:00:19]}  Re1 {[%clk 0:01:29]} 44. Rd7 {[%clk 0:00:18]}  h5+ {[%clk 0:01:14]} 45. Kg5 {[%clk 0:00:18]}  Kg7 {[%clk 0:01:14]} 46. Rxd4 {[%clk 0:00:18]}  Re3 {[%clk 0:01:07]} 47. Rd7 {[%clk 0:00:15]}  Rh3 {[%clk 0:01:05]} 48. a4 {[%clk 0:00:14]}  Rhxg3+ {[%clk 0:01:04]} 49. Rxg3 {[%clk 0:00:15]}  Rxg3+ {[%clk 0:01:05]} 50. Kh4 {[%clk 0:00:15]}  Rg4+ {[%clk 0:01:05]} 51. Kh3 {[%clk 0:00:16]}  Rxf4 {[%clk 0:01:05]} 52. a5 {[%clk 0:00:16]}  Re4 {[%clk 0:01:01]} 53. Rd5 {[%clk 0:00:10]}  Ra4 {[%clk 0:01:01]} 54. Kg3 {[%clk 0:00:09]}  Kf8 {[%clk 0:01:00]} 55. Rd8+ {[%clk 0:00:08]}  Ke7 {[%clk 0:01:00]} 56. Ra8 {[%clk 0:00:09]}  Ke6 {[%clk 0:01:00]} 57. Re8+ {[%clk 0:00:06]}  Kd7 {[%clk 0:01:00]} 58. Rf8 {[%clk 0:00:06]}  Ke7 {[%clk 0:00:59]} 59. Ra8 {[%clk 0:00:06]}  g5 {[%clk 0:00:59]} 60. a6 {[%clk 0:00:06]}  Ra3+ {[%clk 0:00:58]} 61. Kg2 {[%clk 0:00:06]}  Ke6 {[%clk 0:00:56]} 62. a7 {[%clk 0:00:05]}  Ke7 {[%clk 0:00:46]} 63. e6 {[%clk 0:00:06]}  Ra2+ {[%clk 0:00:30]} 64. Kf1 {[%clk 0:00:06]}  Ra1+ {[%clk 0:00:28]} 65. Ke2 {[%clk 0:00:06]}  Ra2+ {[%clk 0:00:27]} 66. Kf1 {[%clk 0:00:05]}  Ra1+ {[%clk 0:00:27]} 67. Ke2 {[%clk 0:00:06]}  Ra2+ {[%clk 0:00:27]} 68. Ke3 {[%clk 0:00:06]}  Ra3+ {[%clk 0:00:27]} 69. Kd4 {[%clk 0:00:06]}  Ra4+ {[%clk 0:00:27]} 70. Kc3 {[%clk 0:00:06]}  Ra3+ {[%clk 0:00:16]} 71. Kb2 {[%clk 0:00:06]}  Rxa7 {[%clk 0:00:14]} 72. Rxa7+ {[%clk 0:00:07]}  Kxe6 {[%clk 0:00:14]} 73. Kc2 {[%clk 0:00:08]}  h4 {[%clk 0:00:14]} 74. Kd2 {[%clk 0:00:08]}  h3 {[%clk 0:00:12]} 75. Ke2 {[%clk 0:00:08]}  h2 {[%clk 0:00:12]} 76. Ra6+ {[%clk 0:00:08]}  Ke5 {[%clk 0:00:12]} 77. Rh6 {[%clk 0:00:09]}  Kf4 {[%clk 0:00:11]} 78. Rxh2 {[%clk 0:00:10]}  Kg3 {[%clk 0:00:11]} 79. Rh7 {[%clk 0:00:09]}  f5 {[%clk 0:00:11]} 80. Kf1 {[%clk 0:00:09]}  f4 {[%clk 0:00:10]} 81. Rg7 {[%clk 0:00:09]}  g4 {[%clk 0:00:10]} 82. Kg1 {[%clk 0:00:10]}  f3 {[%clk 0:00:09]} 83. Kf1 {[%clk 0:00:10]}  Kh4 {[%clk 0:00:03]} 84. Kf2 {[%clk 0:00:11]}  Kh5 {[%clk 0:00:02]} 85. Kg3 {[%clk 0:00:11]}  f2 {[%clk 0:00:02]} 86. Kxf2 {[%clk 0:00:11]} 1-0


[Site "https://www.chess.com"]

[Event "Titled Tuesday Blitz December 27 Early 2022"]
[White "Ankerst, Mihael"]
[Black "Williams, Simon K"]
[WhiteFideId "14602369"]
[BlackFideId "404454"]
[WhiteElo "2370"]
[BlackElo "2465"]
[Result "0-1"]
[Round "08"]
[TimeControl "180+2"]
[Date "2022.12.27"]
[WhiteClock "0:00:20"]
[BlackClock "0:00:14"]

1. e4 {[%clk 0:03:00]}  c5 {[%clk 0:02:53]} 2. Nf3 {[%clk 0:02:59]}  d6 {[%clk 0:02:49]} 3. d4 {[%clk 0:02:58]}  cxd4 {[%clk 0:02:47]} 4. Nxd4 {[%clk 0:02:58]}  Nf6 {[%clk 0:02:47]} 5. Nc3 {[%clk 0:02:58]}  g6 {[%clk 0:02:47]} 6. f4 {[%clk 0:02:58]}  Nbd7 {[%clk 0:02:45]} 7. Qe2 {[%clk 0:02:54]}  Qc7 {[%clk 0:02:40]} 8. Be3 {[%clk 0:02:53]}  Bg7 {[%clk 0:02:40]} 9. O-O-O {[%clk 0:02:53]}  O-O {[%clk 0:02:39]} 10. f5 {[%clk 0:02:44]}  Nc5 {[%clk 0:02:30]} 11. Bg5 {[%clk 0:02:42]}  Qa5 {[%clk 0:01:53]} 12. g4 {[%clk 0:02:20]}  Bd7 {[%clk 0:01:38]} 13. Bd2 {[%clk 0:02:19]}  Rac8 {[%clk 0:01:33]} 14. g5 {[%clk 0:02:17]}  Nfxe4 {[%clk 0:01:27]} 15. Nxe4 {[%clk 0:02:17]}  Qxa2 {[%clk 0:01:26]} 16. Bc3 {[%clk 0:02:13]}  Na4 {[%clk 0:01:06]} 17. f6 {[%clk 0:02:05]}  exf6 {[%clk 0:01:06]} 18. Nxf6+ {[%clk 0:02:04]}  Bxf6 {[%clk 0:01:05]} 19. gxf6 {[%clk 0:02:04]}  Rxc3 {[%clk 0:00:57]} 20. Qe7 {[%clk 0:01:24]}  Qxb2+ {[%clk 0:00:48]} 21. Kd2 {[%clk 0:01:23]}  Bf5 {[%clk 0:00:34]} 22. Rc1 {[%clk 0:01:11]}  Rc5 {[%clk 0:00:24]} 23. Nxf5 {[%clk 0:01:06]}  Qc3+ {[%clk 0:00:24]} 24. Ke2 {[%clk 0:00:45]}  Rxf5 {[%clk 0:00:19]} 25. Qxd6 {[%clk 0:00:45]}  Re8+ {[%clk 0:00:18]} 26. Qe7 {[%clk 0:00:40]}  Re5+ {[%clk 0:00:17]} 27. Kf2 {[%clk 0:00:35]}  R5xe7 {[%clk 0:00:17]} 28. fxe7 {[%clk 0:00:33]}  Rxe7 {[%clk 0:00:16]} 29. Bd3 {[%clk 0:00:34]}  Qd2+ {[%clk 0:00:16]} 30. Kf3 {[%clk 0:00:27]}  Re3+ {[%clk 0:00:16]} 31. Kg4 {[%clk 0:00:27]}  Qg2+ {[%clk 0:00:16]} 32. Kf4 {[%clk 0:00:25]}  Qf3+ {[%clk 0:00:16]} 33. Kg5 {[%clk 0:00:24]}  Re5+ {[%clk 0:00:15]} 34. Kh4 {[%clk 0:00:20]}  Rh5# {[%clk 0:00:14]} 0-1


[Site "https://www.chess.com"]

[Event "Titled Tuesday Blitz December 27 Early 2022"]
[White "Antonio, Jorge Carlos"]
[Black "Dilmukhametov, Artur"]
[WhiteFideId "113190"]
[BlackFideId "24179922"]
[WhiteElo "2277"]
[BlackElo "2276"]
[Result "1/2-1/2"]
[Round "08"]
[TimeControl "180+2"]
[Date "2022.12.27"]
[WhiteClock "0:00:07"]
[BlackClock "0:00:01"]

1. d4 {[%clk 0:03:00]}  Nf6 {[%clk 0:02:58]} 2. Nf3 {[%clk 0:02:59]}  g6 {[%clk 0:02:59]} 3. c4 {[%clk 0:02:57]}  d6 {[%clk 0:02:58]} 4. Nc3 {[%clk 0:02:56]}  Bg7 {[%clk 0:02:59]} 5. e4 {[%clk 0:02:52]}  O-O {[%clk 0:02:59]} 6. Be2 {[%clk 0:02:52]}  Nbd7 {[%clk 0:02:59]} 7. Be3 {[%clk 0:02:48]}  e5 {[%clk 0:02:57]} 8. O-O {[%clk 0:02:44]}  Ne8 {[%clk 0:02:42]} 9. d5 {[%clk 0:02:38]}  Nb6 {[%clk 0:02:31]} 10. c5 {[%clk 0:02:35]}  dxc5 {[%clk 0:02:31]} 11. Bxc5 {[%clk 0:02:29]}  Nd6 {[%clk 0:02:29]} 12. Nd2 {[%clk 0:02:24]}  Nd7 {[%clk 0:02:26]} 13. Be3 {[%clk 0:02:20]}  b6 {[%clk 0:02:21]} 14. f3 {[%clk 0:02:20]}  Nc5 {[%clk 0:02:21]} 15. b4 {[%clk 0:02:13]}  Na6 {[%clk 0:02:17]} 16. a3 {[%clk 0:02:11]}  f5 {[%clk 0:02:15]} 17. Rc1 {[%clk 0:02:07]}  f4 {[%clk 0:02:12]} 18. Bf2 {[%clk 0:02:03]}  g5 {[%clk 0:02:10]} 19. Nb5 {[%clk 0:02:00]}  Nxb5 {[%clk 0:02:09]} 20. Bxb5 {[%clk 0:01:58]}  Nb8 {[%clk 0:02:09]} 21. Qb3 {[%clk 0:01:52]}  Kh8 {[%clk 0:02:08]} 22. Bc6 {[%clk 0:01:42]}  Nxc6 {[%clk 0:02:04]} 23. Rxc6 {[%clk 0:01:40]}  Bb7 {[%clk 0:02:02]} 24. Rc2 {[%clk 0:01:34]}  Qd7 {[%clk 0:01:55]} 25. Rfc1 {[%clk 0:01:30]}  Rac8 {[%clk 0:01:54]} 26. b5 {[%clk 0:01:26]}  Rg8 {[%clk 0:01:53]} 27. a4 {[%clk 0:01:22]}  Bf6 {[%clk 0:01:47]} 28. g3 {[%clk 0:01:13]}  h5 {[%clk 0:01:42]} 29. Kg2 {[%clk 0:01:12]}  Rg7 {[%clk 0:01:09]} 30. Qd3 {[%clk 0:01:08]}  Rh7 {[%clk 0:00:57]} 31. Nf1 {[%clk 0:00:46]}  g4 {[%clk 0:00:44]} 32. Kh1 {[%clk 0:00:42]}  fxg3 {[%clk 0:00:39]} 33. Nxg3 {[%clk 0:00:39]}  h4 {[%clk 0:00:38]} 34. Nf5 {[%clk 0:00:36]}  g3 {[%clk 0:00:27]} 35. Be3 {[%clk 0:00:32]}  Bd8 {[%clk 0:00:15]} 36. Rg2 {[%clk 0:00:17]}  Bf6 {[%clk 0:00:12]} 37. Rcc2 {[%clk 0:00:15]}  Rg8 {[%clk 0:00:11]} 38. h3 {[%clk 0:00:12]}  Rh5 {[%clk 0:00:05]} 39. Qc4 {[%clk 0:00:12]}  Rh7 {[%clk 0:00:04]} 40. Qd3 {[%clk 0:00:10]}  Rc8 {[%clk 0:00:03]} 41. Qe2 {[%clk 0:00:08]}  Rg8 {[%clk 0:00:01]} 42. Qd3 {[%clk 0:00:07]} 1/2-1/2


[Site "https://www.chess.com"]

[Event "Titled Tuesday Blitz December 27 Early 2022"]
[White "Bilych, Olexiy"]
[Black "Toropov, Pavel"]
[WhiteFideId "14156504"]
[BlackFideId "24129178"]
[WhiteElo "2441"]
[BlackElo "2336"]
[Result "1/2-1/2"]
[Round "08"]
[TimeControl "180+2"]
[Date "2022.12.27"]
[WhiteClock "0:00:12"]
[BlackClock "0:00:10"]

1. d4 {[%clk 0:02:58]}  d5 {[%clk 0:02:59]} 2. c4 {[%clk 0:02:59]}  c6 {[%clk 0:02:59]} 3. Nf3 {[%clk 0:02:59]}  Nf6 {[%clk 0:02:59]} 4. Nc3 {[%clk 0:02:59]}  dxc4 {[%clk 0:02:59]} 5. e3 {[%clk 0:02:57]}  b5 {[%clk 0:02:55]} 6. a4 {[%clk 0:02:56]}  b4 {[%clk 0:02:55]} 7. Na2 {[%clk 0:02:53]}  e6 {[%clk 0:02:55]} 8. Bxc4 {[%clk 0:02:53]}  a5 {[%clk 0:02:54]} 9. O-O {[%clk 0:02:51]}  Ba6 {[%clk 0:02:54]} 10. Bxa6 {[%clk 0:02:35]}  Nxa6 {[%clk 0:02:54]} 11. Qe2 {[%clk 0:02:35]}  Be7 {[%clk 0:02:49]} 12. e4 {[%clk 0:02:34]}  O-O {[%clk 0:02:44]} 13. Bg5 {[%clk 0:02:33]}  h6 {[%clk 0:02:37]} 14. Bxf6 {[%clk 0:02:28]}  Bxf6 {[%clk 0:02:36]} 15. Rfd1 {[%clk 0:02:27]}  Qb6 {[%clk 0:02:33]} 16. Nc1 {[%clk 0:02:25]}  Rac8 {[%clk 0:02:19]} 17. Nb3 {[%clk 0:02:14]}  c5 {[%clk 0:02:18]} 18. dxc5 {[%clk 0:02:08]}  Nxc5 {[%clk 0:02:16]} 19. Nxc5 {[%clk 0:02:07]}  Rxc5 {[%clk 0:02:15]} 20. e5 {[%clk 0:02:05]}  Be7 {[%clk 0:02:13]} 21. Rd7 {[%clk 0:02:05]}  Re8 {[%clk 0:02:05]} 22. Rad1 {[%clk 0:02:03]}  Bf8 {[%clk 0:02:02]} 23. Qe4 {[%clk 0:01:46]}  Rc7 {[%clk 0:01:52]} 24. h4 {[%clk 0:01:38]}  Rec8 {[%clk 0:01:44]} 25. Qf4 {[%clk 0:01:35]}  Be7 {[%clk 0:01:30]} 26. Qe4 {[%clk 0:01:10]}  Rc2 {[%clk 0:01:10]} 27. R1d2 {[%clk 0:00:58]}  Rxd2 {[%clk 0:00:48]} 28. Nxd2 {[%clk 0:00:59]}  Bc5 {[%clk 0:00:30]} 29. Qf4 {[%clk 0:00:54]}  Rf8 {[%clk 0:00:30]} 30. Ne4 {[%clk 0:00:46]}  Qc6 {[%clk 0:00:28]} 31. Nf6+ {[%clk 0:00:35]}  Kh8 {[%clk 0:00:23]} 32. Qe4 {[%clk 0:00:34]}  Qxe4 {[%clk 0:00:19]} 33. Nxe4 {[%clk 0:00:35]}  Bb6 {[%clk 0:00:14]} 34. Kf1 {[%clk 0:00:32]}  Kg8 {[%clk 0:00:14]} 35. Ke2 {[%clk 0:00:28]}  Rd8 {[%clk 0:00:14]} 36. Rd6 {[%clk 0:00:20]}  Bc7 {[%clk 0:00:12]} 37. Rxd8+ {[%clk 0:00:19]}  Bxd8 {[%clk 0:00:13]} 38. Kd3 {[%clk 0:00:20]}  Bxh4 {[%clk 0:00:13]} 39. Kc4 {[%clk 0:00:19]}  Bd8 {[%clk 0:00:13]} 40. Kb5 {[%clk 0:00:19]}  h5 {[%clk 0:00:13]} 41. Nd6 {[%clk 0:00:16]}  g5 {[%clk 0:00:12]} 42. Ne4 {[%clk 0:00:16]}  Kg7 {[%clk 0:00:12]} 43. Kc6 {[%clk 0:00:15]}  Kg6 {[%clk 0:00:11]} 44. f3 {[%clk 0:00:12]}  h4 {[%clk 0:00:05]} 45. Nd6 {[%clk 0:00:11]}  Be7 {[%clk 0:00:02]} 46. Nc4 {[%clk 0:00:12]}  Kf5 {[%clk 0:00:02]} 47. Nxa5 {[%clk 0:00:11]}  g4 {[%clk 0:00:02]} 48. fxg4+ {[%clk 0:00:11]}  Kxg4 {[%clk 0:00:02]} 49. Kd7 {[%clk 0:00:11]}  Bf8 {[%clk 0:00:02]} 50. Ke8 {[%clk 0:00:11]}  Bc5 {[%clk 0:00:02]} 51. Nb3 {[%clk 0:00:10]}  Bb6 {[%clk 0:00:02]} 52. a5 {[%clk 0:00:10]}  Ba7 {[%clk 0:00:03]} 53. Kxf7 {[%clk 0:00:10]}  Kg3 {[%clk 0:00:03]} 54. Nd2 {[%clk 0:00:10]}  Kxg2 {[%clk 0:00:04]} 55. Kxe6 {[%clk 0:00:08]}  h3 {[%clk 0:00:05]} 56. Kd7 {[%clk 0:00:08]}  h2 {[%clk 0:00:05]} 57. e6 {[%clk 0:00:09]}  h1=Q {[%clk 0:00:06]} 58. e7 {[%clk 0:00:10]}  Qh3+ {[%clk 0:00:06]} 59. Kc7 {[%clk 0:00:10]}  Qg3+ {[%clk 0:00:05]} 60. Kd7 {[%clk 0:00:09]}  Qd3+ {[%clk 0:00:05]} 61. Kc7 {[%clk 0:00:10]}  Qc2+ {[%clk 0:00:05]} 62. Kb7 {[%clk 0:00:09]}  Qxd2 {[%clk 0:00:03]} 63. e8=Q {[%clk 0:00:08]}  Be3 {[%clk 0:00:02]} 64. Qe4+ {[%clk 0:00:08]}  Kf2 {[%clk 0:00:02]} 65. Qf5+ {[%clk 0:00:08]}  Ke2 {[%clk 0:00:02]} 66. Qb5+ {[%clk 0:00:08]}  Ke1 {[%clk 0:00:02]} 67. b3 {[%clk 0:00:05]}  Qg2+ {[%clk 0:00:02]} 68. Qc6 {[%clk 0:00:05]}  Qxc6+ {[%clk 0:00:01]} 69. Kxc6 {[%clk 0:00:06]}  Kd2 {[%clk 0:00:01]} 70. Kb5 {[%clk 0:00:06]}  Kc3 {[%clk 0:00:02]} 71. Ka4 {[%clk 0:00:05]}  Bd4 {[%clk 0:00:02]} 72. a6 {[%clk 0:00:05]}  Be3 {[%clk 0:00:02]} 73. Kb5 {[%clk 0:00:05]}  Kxb3 {[%clk 0:00:02]} 74. Kc6 {[%clk 0:00:06]}  Kc3 {[%clk 0:00:03]} 75. Kd5 {[%clk 0:00:07]}  b3 {[%clk 0:00:03]} 76. a7 {[%clk 0:00:08]}  Bxa7 {[%clk 0:00:03]} 77. Ke4 {[%clk 0:00:08]}  b2 {[%clk 0:00:04]} 78. Kf5 {[%clk 0:00:09]}  b1=Q+ {[%clk 0:00:05]} 79. Kg4 {[%clk 0:00:10]}  Qb5 {[%clk 0:00:05]} 80. Kf4 {[%clk 0:00:10]}  Kd3 {[%clk 0:00:06]} 81. Kg3 {[%clk 0:00:11]}  Qd5 {[%clk 0:00:07]} 82. Kg4 {[%clk 0:00:11]}  Qe4+ {[%clk 0:00:07]} 83. Kg3 {[%clk 0:00:11]}  Kd4 {[%clk 0:00:08]} 84. Kf2 {[%clk 0:00:11]}  Ke5+ {[%clk 0:00:09]} 85. Kf1 {[%clk 0:00:12]}  Kf4 {[%clk 0:00:10]} 1/2-1/2


[Site "https://www.chess.com"]